[Event "Titled Tuesday Blitz May 03 Late 2022"]
[White "Mekhane, Adam"]
[Black "Al-Tarboush, Ward"]
[WhiteFideId "36050601"]
[BlackFideId "7601450"]
[WhiteElo "2002"]
[BlackElo "2276"]
[Result "0-1"]
[Round "04"]
[TimeControl "180+1"]
[Date "2022.05.03"]
[WhiteClock "0:00:07"]
[BlackClock "0:01:11"]

1. e4 {[%clk 0:03:00]}  e6 {[%clk 0:02:59]} 2. d4 {[%clk 0:02:58]}  d5 {[%clk 0:03:00]} 3. exd5 {[%clk 0:02:51]}  exd5 {[%clk 0:03:01]} 4. Nf3 {[%clk 0:02:51]}  Bg4 {[%clk 0:03:00]} 5. h3 {[%clk 0:02:50]}  Bh5 {[%clk 0:03:00]} 6. Bd3 {[%clk 0:02:48]}  Nc6 {[%clk 0:03:00]} 7. c3 {[%clk 0:02:43]}  Bd6 {[%clk 0:03:00]} 8. O-O {[%clk 0:02:42]}  Nge7 {[%clk 0:03:00]} 9. Re1 {[%clk 0:02:32]}  Qd7 {[%clk 0:02:55]} 10. Nbd2 {[%clk 0:02:29]}  O-O-O {[%clk 0:02:52]} 11. b4 {[%clk 0:02:30]}  Rdg8 {[%clk 0:02:52]} 12. a4 {[%clk 0:02:28]}  g5 {[%clk 0:02:50]} 13. Qc2 {[%clk 0:02:23]}  g4 {[%clk 0:02:41]} 14. hxg4 {[%clk 0:02:20]}  Bxg4 {[%clk 0:02:35]} 15. Ne5 {[%clk 0:02:11]}  Bxe5 {[%clk 0:02:30]} 16. dxe5 {[%clk 0:02:11]}  Bh3 {[%clk 0:02:28]} 17. g3 {[%clk 0:02:08]}  h5 {[%clk 0:02:27]} 18. b5 {[%clk 0:02:02]}  Nd8 {[%clk 0:02:25]} 19. Nf3 {[%clk 0:01:43]}  h4 {[%clk 0:02:25]} 20. Bg5 {[%clk 0:01:39]}  hxg3 {[%clk 0:02:20]} 21. fxg3 {[%clk 0:01:37]}  Ne6 {[%clk 0:02:16]} 22. Bh4 {[%clk 0:01:03]}  Rxh4 {[%clk 0:02:15]} 23. Nxh4 {[%clk 0:01:03]}  Rxg3+ {[%clk 0:02:15]} 24. Kh2 {[%clk 0:00:59]}  Nf4 {[%clk 0:02:15]} 25. e6 {[%clk 0:00:53]}  Qd6 {[%clk 0:02:05]} 26. Kxg3 {[%clk 0:00:32]}  Nh5+ {[%clk 0:01:56]} 27. Kf3 {[%clk 0:00:27]}  Qf4+ {[%clk 0:01:51]} 28. Ke2 {[%clk 0:00:24]}  Bg4+ {[%clk 0:01:51]} 29. Nf3 {[%clk 0:00:17]}  Bxf3+ {[%clk 0:01:50]} 30. Kf2 {[%clk 0:00:14]}  Qg3+ {[%clk 0:01:14]} 31. Kf1 {[%clk 0:00:11]}  Nf4 {[%clk 0:01:12]} 32. exf7 {[%clk 0:00:07]}  Bg2+ {[%clk 0:01:11]} 33. Kg1 {[%clk 0:00:07]}  Nh3# {[%clk 0:01:11]} 0-1


[Site "https://www.chess.com"]

[Event "Titled Tuesday Blitz May 03 Late 2022"]
[White "Mikhailov, Viacheslav"]
[Black "Aggelis, Nikolaos"]
[WhiteFideId "4187369"]
[BlackFideId "4213220"]
[WhiteElo "2381"]
[BlackElo "2154"]
[Result "1/2-1/2"]
[Round "04"]
[TimeControl "180+1"]
[Date "2022.05.03"]
[WhiteClock "0:00:18"]
[BlackClock "0:00:17"]

1. Nf3 {[%clk 0:03:00]}  Nf6 {[%clk 0:02:59]} 2. g3 {[%clk 0:03:00]}  g6 {[%clk 0:02:59]} 3. Bg2 {[%clk 0:03:00]}  Bg7 {[%clk 0:03:00]} 4. O-O {[%clk 0:03:01]}  O-O {[%clk 0:03:00]} 5. c4 {[%clk 0:03:02]}  d5 {[%clk 0:03:00]} 6. cxd5 {[%clk 0:03:02]}  Nxd5 {[%clk 0:03:01]} 7. Nc3 {[%clk 0:03:03]}  Nxc3 {[%clk 0:03:01]} 8. dxc3 {[%clk 0:03:03]}  c6 {[%clk 0:02:56]} 9. Qxd8 {[%clk 0:03:02]}  Rxd8 {[%clk 0:02:56]} 10. Bg5 {[%clk 0:03:03]}  Bf6 {[%clk 0:02:53]} 11. Rad1 {[%clk 0:03:02]}  Bd7 {[%clk 0:02:40]} 12. Bf4 {[%clk 0:02:52]}  Na6 {[%clk 0:02:37]} 13. Be3 {[%clk 0:02:40]}  Be6 {[%clk 0:02:31]} 14. Rxd8+ {[%clk 0:02:28]}  Rxd8 {[%clk 0:02:30]} 15. Bxa7 {[%clk 0:02:29]}  Bxa2 {[%clk 0:02:28]} 16. Bb6 {[%clk 0:02:21]}  Rd7 {[%clk 0:02:23]} 17. e4 {[%clk 0:02:21]}  e6 {[%clk 0:02:07]} 18. Ra1 {[%clk 0:02:05]}  Bc4 {[%clk 0:01:59]} 19. Be3 {[%clk 0:01:56]}  Kg7 {[%clk 0:01:33]} 20. e5 {[%clk 0:01:21]}  Be7 {[%clk 0:01:28]} 21. Nd2 {[%clk 0:01:18]}  Bd5 {[%clk 0:01:26]} 22. Ne4 {[%clk 0:01:12]}  Bxe4 {[%clk 0:01:18]} 23. Bxe4 {[%clk 0:01:13]}  Bc5 {[%clk 0:01:08]} 24. Bxc6 {[%clk 0:01:01]}  bxc6 {[%clk 0:00:58]} 25. Rxa6 {[%clk 0:01:01]}  Bxe3 {[%clk 0:00:58]} 26. fxe3 {[%clk 0:01:02]}  Rb7 {[%clk 0:00:50]} 27. b4 {[%clk 0:01:00]}  c5 {[%clk 0:00:50]} 28. bxc5 {[%clk 0:00:59]}  Rb5 {[%clk 0:00:48]} 29. Rc6 {[%clk 0:00:53]}  Rb3 {[%clk 0:00:48]} 30. Kf2 {[%clk 0:00:52]}  Rxc3 {[%clk 0:00:48]} 31. Kf3 {[%clk 0:00:49]}  Rc4 {[%clk 0:00:41]} 32. Rc8 {[%clk 0:00:48]}  g5 {[%clk 0:00:34]} 33. g4 {[%clk 0:00:44]}  h6 {[%clk 0:00:31]} 34. c6 {[%clk 0:00:44]}  Rc2 {[%clk 0:00:30]} 35. h3 {[%clk 0:00:44]}  Rc1 {[%clk 0:00:30]} 36. Ke4 {[%clk 0:00:43]}  Rc2 {[%clk 0:00:21]} 37. Kd4 {[%clk 0:00:32]}  Rc1 {[%clk 0:00:21]} 38. Kd3 {[%clk 0:00:32]}  Rc5 {[%clk 0:00:21]} 39. Rc7 {[%clk 0:00:28]}  Rc1 {[%clk 0:00:21]} 40. Kd4 {[%clk 0:00:23]}  Rc2 {[%clk 0:00:20]} 41. Rc8 {[%clk 0:00:23]}  Rc1 {[%clk 0:00:19]} 42. c7 {[%clk 0:00:22]}  Rc2 {[%clk 0:00:19]} 43. Kd3 {[%clk 0:00:22]}  Rc1 {[%clk 0:00:19]} 44. Ke4 {[%clk 0:00:22]}  Rc2 {[%clk 0:00:19]} 45. Kf3 {[%clk 0:00:22]}  Rc3 {[%clk 0:00:18]} 46. Kg2 {[%clk 0:00:19]}  Rc2+ {[%clk 0:00:17]} 47. Kg3 {[%clk 0:00:20]}  Rc3 {[%clk 0:00:18]} 48. h4 {[%clk 0:00:20]}  Rxe3+ {[%clk 0:00:17]} 49. Kf2 {[%clk 0:00:21]}  Rc3 {[%clk 0:00:18]} 50. h5 {[%clk 0:00:20]}  Rc4 {[%clk 0:00:16]} 51. Ke2 {[%clk 0:00:20]}  Rc1 {[%clk 0:00:16]} 52. Kd3 {[%clk 0:00:20]}  Rc5 {[%clk 0:00:15]} 53. Kd4 {[%clk 0:00:21]}  Rc1 {[%clk 0:00:16]} 54. Kd3 {[%clk 0:00:21]}  Rc5 {[%clk 0:00:16]} 55. Kd2 {[%clk 0:00:20]}  Rc4 {[%clk 0:00:16]} 56. Kd3 {[%clk 0:00:19]}  Rc1 {[%clk 0:00:16]} 57. Kd4 {[%clk 0:00:18]}  Rc6 {[%clk 0:00:16]} 58. Kd3 {[%clk 0:00:18]}  Rc1 {[%clk 0:00:16]} 59. Kd2 {[%clk 0:00:18]}  Rc6 {[%clk 0:00:17]} 60. Kd3 {[%clk 0:00:18]}  Rc5 {[%clk 0:00:17]} 1/2-1/2


[Site "https://www.chess.com"]

[Event "Titled Tuesday Blitz May 03 Late 2022"]
[White "Milanovic, Marko"]
[Black "Zhigalko, Sergei"]
[WhiteFideId "980129"]
[BlackFideId "13502956"]
[WhiteElo "2159"]
[BlackElo "2662"]
[Result "0-1"]
[Round "04"]
[TimeControl "180+1"]
[Date "2022.05.03"]
[WhiteClock "0:00:13"]
[BlackClock "0:01:40"]

1. d4 {[%clk 0:03:00]}  Nf6 {[%clk 0:02:59]} 2. Bf4 {[%clk 0:03:00]}  e6 {[%clk 0:02:59]} 3. Nf3 {[%clk 0:02:53]}  b6 {[%clk 0:02:58]} 4. e3 {[%clk 0:02:40]}  Bb7 {[%clk 0:02:57]} 5. Bd3 {[%clk 0:02:38]}  Nh5 {[%clk 0:02:56]} 6. Bg5 {[%clk 0:02:28]}  Be7 {[%clk 0:02:55]} 7. Bxe7 {[%clk 0:02:27]}  Qxe7 {[%clk 0:02:56]} 8. Nbd2 {[%clk 0:02:26]}  f5 {[%clk 0:02:53]} 9. c3 {[%clk 0:02:11]}  O-O {[%clk 0:02:50]} 10. Qc2 {[%clk 0:02:09]}  c5 {[%clk 0:02:47]} 11. O-O-O {[%clk 0:02:08]}  Nc6 {[%clk 0:02:46]} 12. g4 {[%clk 0:01:59]}  fxg4 {[%clk 0:02:41]} 13. Bxh7+ {[%clk 0:01:58]}  Kh8 {[%clk 0:02:42]} 14. Bg6 {[%clk 0:01:57]}  gxf3 {[%clk 0:02:30]} 15. Bxh5 {[%clk 0:01:53]}  cxd4 {[%clk 0:02:30]} 16. exd4 {[%clk 0:01:41]}  Nxd4 {[%clk 0:02:31]} 17. Qd3 {[%clk 0:01:21]}  Ne2+ {[%clk 0:02:26]} 18. Kb1 {[%clk 0:01:20]}  Nf4 {[%clk 0:02:27]} 19. Qb5 {[%clk 0:01:05]}  Rf5 {[%clk 0:02:24]} 20. Qb3 {[%clk 0:00:42]}  Rxh5 {[%clk 0:02:10]} 21. Rhe1 {[%clk 0:00:37]}  Ne2 {[%clk 0:02:05]} 22. Qc4 {[%clk 0:00:33]}  Rf8 {[%clk 0:02:00]} 23. Qg4 {[%clk 0:00:28]}  Qh4 {[%clk 0:01:55]} 24. Qg6 {[%clk 0:00:24]}  Rh6 {[%clk 0:01:51]} 25. Qd3 {[%clk 0:00:21]}  Bc6 {[%clk 0:01:50]} 26. Qd6 {[%clk 0:00:19]}  Kg8 {[%clk 0:01:47]} 27. Nf1 {[%clk 0:00:14]}  Qxf2 {[%clk 0:01:43]} 28. Qd3 {[%clk 0:00:12]}  Qc5 {[%clk 0:01:40]} 29. Qc4 {[%clk 0:00:13]}  Qxc4 {[%clk 0:01:40]} 0-1


[Site "https://www.chess.com"]

[Event "Titled Tuesday Blitz May 03 Late 2022"]
[White "Mirzoev, Azer"]
[Black "Prieto Aranguren, Alain"]
[WhiteFideId "13400304"]
[BlackFideId "2268906"]
[WhiteElo "2525"]
[BlackElo "2235"]
[Result "1-0"]
[Round "04"]
[TimeControl "180+1"]
[Date "2022.05.03"]
[WhiteClock "0:02:35"]
[BlackClock "0:02:04"]

1. c4 {[%clk 0:02:59]}  Nf6 {[%clk 0:02:56]} 2. Nc3 {[%clk 0:02:59]}  g6 {[%clk 0:02:57]} 3. e4 {[%clk 0:02:58]}  Bg7 {[%clk 0:02:58]} 4. d3 {[%clk 0:02:57]}  O-O {[%clk 0:02:58]} 5. g3 {[%clk 0:02:57]}  d6 {[%clk 0:02:58]} 6. Bg2 {[%clk 0:02:57]}  e5 {[%clk 0:02:58]} 7. Nge2 {[%clk 0:02:58]}  Nc6 {[%clk 0:02:54]} 8. O-O {[%clk 0:02:58]}  Nd7 {[%clk 0:02:54]} 9. f4 {[%clk 0:02:57]}  f5 {[%clk 0:02:41]} 10. exf5 {[%clk 0:02:56]}  gxf5 {[%clk 0:02:41]} 11. Be3 {[%clk 0:02:53]}  Nd4 {[%clk 0:02:36]} 12. Qd2 {[%clk 0:02:51]}  a5 {[%clk 0:02:32]} 13. Rae1 {[%clk 0:02:50]}  Nc5 {[%clk 0:02:31]} 14. h3 {[%clk 0:02:46]}  Bd7 {[%clk 0:02:24]} 15. Kh2 {[%clk 0:02:44]}  Qe8 {[%clk 0:02:19]} 16. Nd5 {[%clk 0:02:42]}  Rc8 {[%clk 0:02:12]} 17. Nxd4 {[%clk 0:02:42]}  exd4 {[%clk 0:02:11]} 18. Bxd4 {[%clk 0:02:41]}  Qh5 {[%clk 0:02:07]} 19. Ne7+ {[%clk 0:02:38]}  Kh8 {[%clk 0:02:07]} 20. Bxg7+ {[%clk 0:02:39]}  Kxg7 {[%clk 0:02:06]} 21. Nxc8 {[%clk 0:02:38]}  Bxc8 {[%clk 0:02:04]} 22. Re7+ {[%clk 0:02:37]}  Kh8 {[%clk 0:02:04]} 23. Qc3+ {[%clk 0:02:35]} 1-0


[Site "https://www.chess.com"]

[Event "Titled Tuesday Blitz May 03 Late 2022"]
[White "Mogranzini, Roberto"]
[Black "Zhou, Qiyu"]
[WhiteFideId "810894"]
[BlackFideId "505161"]
[WhiteElo "2469"]
[BlackElo "1925"]
[Result "0-1"]
[Round "04"]
[TimeControl "180+1"]
[Date "2022.05.03"]
[WhiteClock "0:00:07"]
[BlackClock "0:00:12"]

1. c4 {[%clk 0:03:00]}  g6 {[%clk 0:02:52]} 2. g3 {[%clk 0:03:00]}  Bg7 {[%clk 0:02:52]} 3. Bg2 {[%clk 0:03:01]}  d6 {[%clk 0:02:49]} 4. Nc3 {[%clk 0:03:02]}  c5 {[%clk 0:02:49]} 5. d3 {[%clk 0:03:03]}  Nc6 {[%clk 0:02:49]} 6. Bd2 {[%clk 0:03:04]}  Nf6 {[%clk 0:02:50]} 7. Qc1 {[%clk 0:03:04]}  O-O {[%clk 0:02:51]} 8. Bh6 {[%clk 0:03:04]}  e5 {[%clk 0:02:35]} 9. h4 {[%clk 0:03:02]}  Nh5 {[%clk 0:02:32]} 10. Bxg7 {[%clk 0:02:59]}  Nxg7 {[%clk 0:02:33]} 11. Nf3 {[%clk 0:02:58]}  Bg4 {[%clk 0:02:26]} 12. Nd5 {[%clk 0:02:41]}  f6 {[%clk 0:02:19]} 13. Nd2 {[%clk 0:02:33]}  Ne7 {[%clk 0:01:56]} 14. Ne3 {[%clk 0:02:24]}  Bc8 {[%clk 0:01:46]} 15. Ne4 {[%clk 0:02:22]}  Be6 {[%clk 0:01:39]} 16. Nc3 {[%clk 0:02:21]}  Qd7 {[%clk 0:01:38]} 17. Rb1 {[%clk 0:02:11]}  Rab8 {[%clk 0:01:35]} 18. b4 {[%clk 0:02:11]}  b6 {[%clk 0:01:28]} 19. O-O {[%clk 0:02:10]}  Bh3 {[%clk 0:01:26]} 20. Ncd5 {[%clk 0:02:05]}  Bxg2 {[%clk 0:01:23]} 21. Kxg2 {[%clk 0:02:04]}  f5 {[%clk 0:01:15]} 22. Nxe7+ {[%clk 0:02:03]}  Qxe7 {[%clk 0:01:15]} 23. Nd5 {[%clk 0:02:04]}  Qe6 {[%clk 0:01:09]} 24. Qg5 {[%clk 0:01:55]}  Rf7 {[%clk 0:01:00]} 25. a4 {[%clk 0:01:47]}  Rbf8 {[%clk 0:00:46]} 26. a5 {[%clk 0:01:42]}  b5 {[%clk 0:00:44]} 27. bxc5 {[%clk 0:01:40]}  bxc4 {[%clk 0:00:44]} 28. dxc4 {[%clk 0:01:40]}  dxc5 {[%clk 0:00:43]} 29. Rb5 {[%clk 0:01:29]}  f4 {[%clk 0:00:29]} 30. Rxc5 {[%clk 0:01:16]}  fxg3 {[%clk 0:00:29]} 31. f3 {[%clk 0:01:08]}  Nh5 {[%clk 0:00:21]} 32. Rb1 {[%clk 0:00:45]}  e4 {[%clk 0:00:15]} 33. f4 {[%clk 0:00:35]}  Nxf4+ {[%clk 0:00:13]} 34. Nxf4 {[%clk 0:00:32]}  Rxf4 {[%clk 0:00:13]} 35. Qd5 {[%clk 0:00:23]}  Qxd5 {[%clk 0:00:13]} 36. cxd5 {[%clk 0:00:20]}  Rf2+ {[%clk 0:00:12]} 37. Kxg3 {[%clk 0:00:21]}  Rxe2 {[%clk 0:00:13]} 38. d6 {[%clk 0:00:20]}  Rf3+ {[%clk 0:00:12]} 39. Kg4 {[%clk 0:00:07]}  Rg2# {[%clk 0:00:12]} 0-1


[Site "https://www.chess.com"]

[Event "Titled Tuesday Blitz May 03 Late 2022"]
[White "Moskalenko, Alexander"]
[Black "Yedidia, Daniel"]
[WhiteFideId "4155351"]
[BlackFideId "30905907"]
[WhiteElo "2434"]
[BlackElo "2574"]
[Result "1-0"]
[Round "04"]
[TimeControl "180+1"]
[Date "2022.05.03"]
[WhiteClock "0:00:31"]
[BlackClock "0:00:06"]

1. c4 {[%clk 0:03:00]}  Nf6 {[%clk 0:02:56]} 2. Nc3 {[%clk 0:03:00]}  b6 {[%clk 0:02:56]} 3. e4 {[%clk 0:02:58]}  e5 {[%clk 0:02:56]} 4. Nf3 {[%clk 0:02:58]}  Bb7 {[%clk 0:02:55]} 5. Nxe5 {[%clk 0:02:53]}  Qe7 {[%clk 0:02:54]} 6. d4 {[%clk 0:02:53]}  Nxe4 {[%clk 0:02:48]} 7. Nxe4 {[%clk 0:02:48]}  Bxe4 {[%clk 0:02:48]} 8. Be3 {[%clk 0:02:41]}  Qb4+ {[%clk 0:02:35]} 9. Qd2 {[%clk 0:02:39]}  Qxd2+ {[%clk 0:02:33]} 10. Bxd2 {[%clk 0:02:40]}  d6 {[%clk 0:02:28]} 11. Nd3 {[%clk 0:02:36]}  g6 {[%clk 0:02:25]} 12. f3 {[%clk 0:02:10]}  Bb7 {[%clk 0:02:18]} 13. Bc3 {[%clk 0:02:09]}  Bg7 {[%clk 0:02:18]} 14. Kd2 {[%clk 0:02:08]}  O-O {[%clk 0:02:16]} 15. d5 {[%clk 0:02:09]}  Nd7 {[%clk 0:02:13]} 16. Be2 {[%clk 0:02:03]}  Rfe8 {[%clk 0:02:12]} 17. Rae1 {[%clk 0:02:01]}  b5 {[%clk 0:02:02]} 18. Nb4 {[%clk 0:01:59]}  bxc4 {[%clk 0:01:59]} 19. Bxc4 {[%clk 0:02:00]}  Nb6 {[%clk 0:01:57]} 20. b3 {[%clk 0:01:59]}  a5 {[%clk 0:01:40]} 21. Nc6 {[%clk 0:01:50]}  Nxc4+ {[%clk 0:01:20]} 22. bxc4 {[%clk 0:01:51]}  Bxc3+ {[%clk 0:01:20]} 23. Kxc3 {[%clk 0:01:41]}  Bxc6 {[%clk 0:01:20]} 24. dxc6 {[%clk 0:01:42]}  Rxe1 {[%clk 0:01:20]} 25. Rxe1 {[%clk 0:01:43]}  Ra6 {[%clk 0:01:21]} 26. Kd4 {[%clk 0:01:38]}  Rxc6 {[%clk 0:01:20]} 27. Re8+ {[%clk 0:01:38]}  Kg7 {[%clk 0:01:20]} 28. Ra8 {[%clk 0:01:38]}  Rc5 {[%clk 0:01:20]} 29. g4 {[%clk 0:01:27]}  h5 {[%clk 0:01:16]} 30. h3 {[%clk 0:01:27]}  Kf6 {[%clk 0:01:14]} 31. a4 {[%clk 0:01:26]}  Kg5 {[%clk 0:01:02]} 32. Rf8 {[%clk 0:01:21]}  f5 {[%clk 0:01:01]} 33. gxh5 {[%clk 0:01:19]}  gxh5 {[%clk 0:00:51]} 34. Rh8 {[%clk 0:01:13]}  Kh4 {[%clk 0:00:48]} 35. f4 {[%clk 0:01:13]}  Kxh3 {[%clk 0:00:46]} 36. Rxh5+ {[%clk 0:01:11]}  Kg4 {[%clk 0:00:46]} 37. Rh1 {[%clk 0:01:05]}  Kxf4 {[%clk 0:00:46]} 38. Rg1 {[%clk 0:01:06]}  Re5 {[%clk 0:00:42]} 39. Rg7 {[%clk 0:01:02]}  Rc5 {[%clk 0:00:35]} 40. Rg1 {[%clk 0:00:59]}  Kf3 {[%clk 0:00:35]} 41. Rf1+ {[%clk 0:00:59]}  Kg4 {[%clk 0:00:35]} 42. Rg1+ {[%clk 0:01:00]}  Kh4 {[%clk 0:00:33]} 43. Rg7 {[%clk 0:00:58]}  f4 {[%clk 0:00:31]} 44. Rg8 {[%clk 0:00:55]}  Rf5 {[%clk 0:00:28]} 45. Ke4 {[%clk 0:00:54]}  Rc5 {[%clk 0:00:22]} 46. Kd4 {[%clk 0:00:48]}  Re5 {[%clk 0:00:18]} 47. c5 {[%clk 0:00:42]}  Rxc5 {[%clk 0:00:18]} 48. Ke4 {[%clk 0:00:42]}  Rc4+ {[%clk 0:00:18]} 49. Kf3 {[%clk 0:00:43]}  Rxa4 {[%clk 0:00:16]} 50. Rg7 {[%clk 0:00:44]}  Rd4 {[%clk 0:00:14]} 51. Rxc7 {[%clk 0:00:43]}  Kg5 {[%clk 0:00:14]} 52. Rg7+ {[%clk 0:00:40]}  Kf5 {[%clk 0:00:14]} 53. Rf7+ {[%clk 0:00:40]}  Ke5 {[%clk 0:00:14]} 54. Re7+ {[%clk 0:00:40]}  Kf6 {[%clk 0:00:14]} 55. Ra7 {[%clk 0:00:40]}  a4 {[%clk 0:00:15]} 56. Ra5 {[%clk 0:00:40]}  Ke6 {[%clk 0:00:11]} 57. Ra8 {[%clk 0:00:40]}  Kd5 {[%clk 0:00:11]} 58. Ra5+ {[%clk 0:00:40]}  Kc6 {[%clk 0:00:10]} 59. Ke2 {[%clk 0:00:38]}  Rb4 {[%clk 0:00:09]} 60. Kd3 {[%clk 0:00:36]}  Rb3+ {[%clk 0:00:08]} 61. Kc4 {[%clk 0:00:36]}  d5+ {[%clk 0:00:05]} 62. Kd4 {[%clk 0:00:33]}  a3 {[%clk 0:00:04]} 63. Ra6+ {[%clk 0:00:32]}  Kb5 {[%clk 0:00:05]} 64. Ra8 {[%clk 0:00:32]}  Rb4+ {[%clk 0:00:05]} 65. Kxd5 {[%clk 0:00:32]}  Ra4 {[%clk 0:00:05]} 66. Rb8+ {[%clk 0:00:32]}  Ka5 {[%clk 0:00:06]} 67. Kc5 {[%clk 0:00:31]} 1-0


[Site "https://www.chess.com"]

[Event "Titled Tuesday Blitz May 03 Late 2022"]
[White "Nagy, Gabor"]
[Black "Dobre, Claudiu-Cristian"]
[WhiteFideId "737119"]
[BlackFideId "1211854"]
[WhiteElo "2534"]
[BlackElo "2207"]
[Result "1-0"]
[Round "04"]
[TimeControl "180+1"]
[Date "2022.05.03"]
[WhiteClock "0:02:10"]
[BlackClock "0:00:51"]

1. d4 {[%clk 0:03:00]}  d5 {[%clk 0:02:59]} 2. c4 {[%clk 0:03:00]}  c6 {[%clk 0:02:59]} 3. Nf3 {[%clk 0:02:59]}  Nf6 {[%clk 0:02:59]} 4. e3 {[%clk 0:02:59]}  Bg4 {[%clk 0:02:57]} 5. h3 {[%clk 0:02:57]}  Bxf3 {[%clk 0:02:57]} 6. Qxf3 {[%clk 0:02:58]}  e6 {[%clk 0:02:57]} 7. Bd3 {[%clk 0:02:58]}  Nbd7 {[%clk 0:02:57]} 8. O-O {[%clk 0:02:59]}  Bd6 {[%clk 0:02:56]} 9. Nc3 {[%clk 0:02:59]}  O-O {[%clk 0:02:47]} 10. Bd2 {[%clk 0:02:58]}  a6 {[%clk 0:02:21]} 11. Rad1 {[%clk 0:02:56]}  b5 {[%clk 0:02:20]} 12. b3 {[%clk 0:02:56]}  Bb4 {[%clk 0:02:16]} 13. e4 {[%clk 0:02:47]}  Bxc3 {[%clk 0:01:56]} 14. Bxc3 {[%clk 0:02:48]}  dxe4 {[%clk 0:01:52]} 15. Bxe4 {[%clk 0:02:49]}  Nxe4 {[%clk 0:01:51]} 16. Qxe4 {[%clk 0:02:50]}  Qc7 {[%clk 0:01:49]} 17. Rfe1 {[%clk 0:02:46]}  Nf6 {[%clk 0:01:37]} 18. Qh4 {[%clk 0:02:46]}  Rfe8 {[%clk 0:01:16]} 19. d5 {[%clk 0:02:40]}  cxd5 {[%clk 0:01:15]} 20. Bxf6 {[%clk 0:02:40]}  gxf6 {[%clk 0:01:15]} 21. Qxf6 {[%clk 0:02:34]}  Qe7 {[%clk 0:01:14]} 22. Qxe7 {[%clk 0:02:19]}  Rxe7 {[%clk 0:01:14]} 23. cxd5 {[%clk 0:02:20]}  Rd8 {[%clk 0:01:14]} 24. dxe6 {[%clk 0:02:19]}  Rxd1 {[%clk 0:01:09]} 25. exf7+ {[%clk 0:02:18]}  Kxf7 {[%clk 0:01:09]} 26. Rxd1 {[%clk 0:02:18]}  Re2 {[%clk 0:01:09]} 27. Rd7+ {[%clk 0:02:16]}  Ke8 {[%clk 0:01:03]} 28. Rxh7 {[%clk 0:02:15]}  Rxa2 {[%clk 0:01:03]} 29. Ra7 {[%clk 0:02:13]}  a5 {[%clk 0:01:01]} 30. h4 {[%clk 0:02:12]}  a4 {[%clk 0:00:55]} 31. bxa4 {[%clk 0:02:11]}  bxa4 {[%clk 0:00:54]} 32. g3 {[%clk 0:02:11]}  a3 {[%clk 0:00:52]} 33. Kg2 {[%clk 0:02:11]}  Kd8 {[%clk 0:00:51]} 34. h5 {[%clk 0:02:10]} 1-0


[Site "https://www.chess.com"]